bitfinex-derivatives/quotes_SOLF0:USTF0_20250830
["timestamp","ask_amount","ask_price","bid_price","bid_amount"]
[1756539366556,7.65,204.67,204.62,1.81548107]
[1756539367160,7.65,204.67,204.6,7.89]
[1756539367360,7.65,204.67,204.62,1.81548107]
[1756539367560,7.65,204.67,204.63,7.89]
[1756539367756,1.81548107,204.68,204.64,7.89]
[1756539367956,1.81548107,204.68,204.63,7.89]
[1756539368270,1.81548107,204.68,204.62,1.81548107]
[1756539368564,1.81548107,204.68,204.63,7.89]
[1756539368758,1.81548107,204.68,204.62,1.81548107]
[1756539368961,1.81548107,204.68,204.63,7.89]
[1756539369160,1.81548107,204.68,204.62,1.81548107]
[1756539369762,1.81548107,204.68,204.63,7.89]
[1756539370066,1.81548107,204.68,204.62,1.81548107]
[1756539370463,1.81548107,204.68,204.63,7.89]
[1756539370674,1.81548107,204.68,204.62,1.81548107]
[1756539370968,1.81548107,204.68,204.63,7.89]
[1756539371364,1.81548107,204.68,204.62,1.81548107]
[1756539371959,1.81548107,204.68,204.63,7.89]
[1756539372270,1.81548107,204.68,204.62,7.26894837]
[1756539373159,1.81548107,204.68,204.63,7.89]
[1756539373969,1.81548107,204.68,204.62,1.81548107]
[1756539374277,1.81548107,204.68,204.63,7.89]
[1756539374474,1.81548107,204.68,204.62,1.81548107]
[1756539374773,1.81548107,204.68,204.63,7.89]
[1756539375173,1.81548107,204.68,204.62,1.81548107]
[1756539375378,9.55548107,204.69,204.63,7.89]
[1756539375673,2.51844024,204.68,204.62,7.26894837]
[1756539375878,9.55548107,204.69,204.63,7.89]
[1756539376074,2.51844024,204.68,204.62,7.26894837]
[1756539376378,1.81548107,204.69,204.62,7.26894837]
[1756539376379,10.25936562,204.67,204.62,7.26894837]
[1756539376577,7.74,204.67,204.62,7.26894837]
[1756539376878,7.74,204.67,204.63,7.89]
[1756539377072,7.74,204.67,204.62,7.26894837]
[1756539377273,7.74,204.67,204.63,7.89]
[1756539377473,7.74,204.67,204.62,7.26894837]
[1756539377673,7.74,204.67,204.63,7.89]
[1756539377879,7.74,204.67,204.62,7.26894837]
[1756539378880,1.81548107,204.69,204.63,7.89]
[1756539379080,2.52042593,204.68,204.65,7.89]
[1756539379279,2.52042593,204.67,204.65,7.89]
[1756539379480,7.74,204.69,204.65,7.89]
[1756539379675,10.2607843,204.68,204.65,7.89]
[1756539379874,2.5207843,204.67,204.65,7.89]
[1756539380068,7.74,204.68,204.65,7.89]
[1756539380275,2.52098789,204.67,204.65,7.89]
[1756539380571,7.74,204.68,204.65,7.89]
[1756539380775,2.52116823,204.67,204.65,7.89]
[1756539380979,7.74,204.68,204.65,7.89]
[1756539381179,2.52116823,204.67,204.65,7.89]
[1756539381380,7.74,204.68,204.65,7.89]
[1756539381580,2.51986535,204.67,204.65,7.89]
[1756539381884,7.74,204.68,204.65,7.89]
[1756539382173,2.51991435,204.67,204.65,7.89]
[1756539382381,7.74,204.68,204.65,7.89]
[1756539382680,2.51993234,204.67,204.63,5.4534673]
[1756539382879,9.55548107,204.69,204.63,5.4534673]
[1756539383078,2.51991045,204.68,204.64,7.89]
[1756539383281,2.51991045,204.67,204.64,7.89]
[1756539383476,7.74,204.68,204.63,5.4534673]
[1756539383671,2.51990605,204.67,204.64,7.89]
[1756539383877,7.74,204.68,204.63,5.4534673]
[1756539384077,2.5199055,204.67,204.63,5.4534673]
[1756539384382,7.74,204.68,204.63,5.4534673]
[1756539384578,2.51990225,204.67,204.63,5.4534673]
[1756539384778,7.74,204.68,204.64,7.89]
[1756539385078,2.51990335,204.67,204.64,7.89]
[1756539385277,7.74,204.68,204.64,7.89]
[1756539385482,2.51992784,204.67,204.64,7.89]
[1756539385780,7.74,204.68,204.64,7.89]
[1756539386080,2.51992894,204.67,204.64,7.89]
[1756539386378,7.74,204.68,204.64,7.89]
[1756539386678,1.81548107,204.65,204.63,5.4534673]
[1756539386881,12.07474304,204.64,204.53,7.89]
[1756539387081,1.81548107,204.58,204.53,7.89]
[1756539387280,12.01052965,204.57,204.53,7.89]
[1756539387475,4.27052965,204.56,204.53,7.89]
[1756539387776,4.27052965,204.55,204.51,7.89]
[1756539387981,7.74,204.57,204.51,7.89]
[1756539390177,7.74,204.6,204.52,1.81548107]
[1756539390375,1.81548107,204.61,204.55,7.89]
[1756539391381,7.74,204.61,204.55,7.89]
[1756539391975,2.83906867,204.62,204.49,8.24]
[1756539392281,2.83906867,204.62,204.5,7.89]
[1756539392282,13.93856502,204.61,204.5,7.89]
[1756539392480,7.74,204.61,204.5,7.89]
[1756539394481,2.83906867,204.6,204.5,7.89]
[1756539395481,7.74,204.59,204.5,7.89]
[1756539396485,10.57906867,204.62,204.51,2.83906867]
[1756539396887,10.57906867,204.62,204.52,7.89]
[1756539397689,10.57906867,204.62,204.52,4.4]
[1756539397889,10.57906867,204.62,204.53,7.86]
[1756539401592,7.74,204.62,204.53,7.86]
[1756539405297,10.57906867,204.62,204.53,7.86]
[1756539411497,7.74,204.6,204.53,7.86]
[1756539412597,7.74,204.58,204.49,7.86]
[1756539413495,1.81747515,204.56,204.5,1.81747515]
[1756539413692,1.81747515,204.56,204.51,7.86]
[1756539413897,1.81747515,204.56,204.5,1.81747515]
[1756539414688,1.81747515,204.56,204.51,7.86]
[1756539414898,1.81747515,204.56,204.5,1.81747515]
[1756539415593,1.81747515,204.56,204.51,7.86]
[1756539415796,1.81747515,204.59,204.54,1.81747515]
[1756539415992,9.55747515,204.59,204.55,7.86]
[1756539416190,9.55747515,204.59,204.54,1.81747515]
[1756539416392,9.55747515,204.59,204.55,7.86]
[1756539416798,7.74,204.58,204.55,7.86]
[1756539417193,1.81747515,204.59,204.5,4.4005]
[1756539417402,7.74,204.58,204.52,1.81747515]
[1756539417696,9.55747515,204.58,204.52,1.81747515]
[1756539418096,9.55747515,204.58,204.51,7.86]
[1756539419295,7.74,204.58,204.51,7.86]
[1756539419606,7.74,204.52,204.44,7.86]
[1756539420100,7.74,204.52,204.44,2.83975615]
[1756539420301,10.57975615,204.56,204.47,2.83975615]
[1756539420604,10.57975615,204.56,204.48,7.86]
[1756539421005,10.57975615,204.59,204.48,7.86]
[1756539421200,2.50370621,204.58,204.48,7.86]
[1756539421402,10.57975615,204.59,204.48,7.86]
[1756539421595,2.50381634,204.58,204.48,7.86]
[1756539421801,10.57975615,204.59,204.49,7.86]
[1756539421998,2.50392354,204.58,204.49,7.86]
[1756539422199,10.57975615,204.59,204.49,7.86]
[1756539422398,7.74,204.57,204.49,7.86]
[1756539424202,2.83975615,204.56,204.49,7.86]
[1756539428209,2.50966389,204.55,204.49,7.86]
[1756539428407,2.83975615,204.56,204.49,7.86]
[1756539429214,2.51094442,204.55,204.49,7.86]
[1756539429414,2.83975615,204.56,204.49,7.86]
[1756539429614,2.51082281,204.55,204.49,7.86]
[1756539429912,2.83975615,204.56,204.49,7.86]
[1756539430105,2.51082336,204.55,204.49,7.86]
[1756539430307,2.83975615,204.56,204.49,7.86]
[1756539430505,2.51238797,204.55,204.49,7.86]
[1756539430714,2.83975615,204.56,204.49,7.86]
[1756539430914,2.51238797,204.55,204.49,7.86]
[1756539431116,2.83975615,204.56,204.49,7.86]
[1756539431317,6.14237522,204.55,204.49,7.86]
[1756539431509,6.14237522,204.55,204.46,4.4012]
[1756539431510,2.51462914,204.54,204.47,7.29]
[1756539431710,2.83975615,204.56,204.47,7.29]
[1756539431910,6.14175341,204.55,204.47,7.29]
[1756539432116,2.51436813,204.54,204.47,7.29]
[1756539432313,2.83975615,204.56,204.47,7.29]
[1756539432515,6.14114209,204.55,204.47,7.29]
[1756539432714,2.51411786,204.54,204.47,7.29]
[1756539433014,2.83975615,204.56,204.47,7.29]
[1756539433217,6.14092511,204.55,204.47,7.29]
[1756539433418,2.51402903,204.54,204.47,7.29]
[1756539433617,2.83975615,204.56,204.47,7.29]
[1756539433818,6.13996271,204.55,204.47,7.29]
[1756539434016,2.51363504,204.54,204.47,7.29]
[1756539434221,2.83975615,204.56,204.47,7.29]
[1756539434411,6.13965209,204.55,204.47,7.29]
[1756539434616,2.51350787,204.54,204.47,7.29]
[1756539434817,2.83975615,204.56,204.47,7.29]
[1756539435015,6.13938471,204.55,204.47,7.29]
[1756539435215,2.51339838,204.54,204.47,7.29]
[1756539435520,2.83975615,204.56,204.47,7.29]
[1756539435720,6.13886236,204.55,204.47,7.29]
[1756539435921,2.51318451,204.54,204.47,7.29]
[1756539436122,2.83975615,204.56,204.47,7.29]
[1756539436322,6.13845683,204.55,204.47,7.29]
[1756539436523,2.51301849,204.54,204.47,7.29]
[1756539436724,2.83975615,204.56,204.47,7.29]
[1756539436924,6.10189323,204.55,204.47,7.29]
[1756539437223,2.51291034,204.54,204.47,7.29]
[1756539437418,7.41,204.55,204.47,7.29]
[1756539437623,2.51244056,204.54,204.47,7.29]
[1756539437824,7.41,204.55,204.47,7.29]
[1756539438023,2.51244111,204.54,204.47,7.29]
[1756539438223,7.41,204.55,204.47,7.29]
[1756539438425,2.51232184,204.54,204.47,7.29]
[1756539438621,7.41,204.55,204.47,7.29]
[1756539438825,2.51232294,204.54,204.47,7.29]
[1756539439028,7.41,204.55,204.47,7.29]
[1756539439231,2.51227712,204.54,204.47,7.29]
[1756539439520,7.41,204.55,204.47,7.29]
[1756539439726,7.41,204.53,204.47,7.29]
[1756539441429,1.81840243,204.51,204.45,6.22000243]
[1756539442022,1.81840243,204.51,204.46,7.29]
[1756539442319,9.22840243,204.51,204.44,7.29]
[1756539442828,1.81840243,204.51,204.46,7.29]
[1756539443028,1.81840243,204.51,204.45,6.21990243]
[1756539443427,1.81840243,204.49,204.43,7.29]
[1756539449433,9.22840243,204.49,204.43,7.29]
[1756539450628,1.81840243,204.49,204.44,1.81840243]
[1756539451134,7.41,204.52,204.46,1.81840243]
[1756539451329,1.81840243,204.54,204.47,7.29]
[1756539451528,2.51450591,204.53,204.47,7.29]
[1756539451736,1.81840243,204.54,204.47,7.29]
[1756539451930,2.51449091,204.53,204.48,1.81840243]
[1756539452131,1.81840243,204.54,204.48,1.81840243]
[1756539452132,1.81840243,204.54,204.48,9.10840243]
[1756539452333,1.81840243,204.52,204.47,7.29]
[1756539452534,7.41,204.55,204.49,7.29]
[1756539452735,1.81840243,204.54,204.48,6.21930243]
[1756539453335,10.25016808,204.58,204.49,7.29]
[1756539453531,9.57078453,204.57,204.49,7.29]
[1756539453730,6.10039213,204.56,204.49,7.29]
[1756539453932,2.51567271,204.55,204.49,7.29]
[1756539454131,10.25016808,204.58,204.49,7.29]
[1756539454334,9.57178068,204.57,204.49,7.29]
[1756539454534,6.10103739,204.56,204.49,7.29]
[1756539454737,2.5159388,204.55,204.49,7.29]
[1756539454936,7.41,204.58,204.49,7.29]
[1756539455134,9.57219196,204.57,204.51,7.29]
[1756539455326,2.51604718,204.56,204.5,4.4004]
[1756539455528,2.51604718,204.55,204.5,4.4004]
[1756539455737,7.41,204.58,204.51,7.29]
[1756539455936,2.51686808,204.57,204.51,7.29]
[1756539456138,2.51686808,204.56,204.5,4.4004]
[1756539456336,2.51686808,204.55,204.5,4.4004]
[1756539456532,7.41,204.58,204.51,7.29]
[1756539456738,2.51790334,204.57,204.51,7.29]
[1756539456936,2.51790334,204.56,204.51,7.86]
[1756539457235,2.51810836,204.55,204.5,4.4004]
[1756539457430,7.41,204.58,204.51,7.86]
[1756539457637,2.51813458,204.57,204.51,7.86]
[1756539457835,7.41,204.58,204.51,7.86]
[1756539457836,2.51813458,204.56,204.51,7.86]
[1756539458136,2.51813458,204.55,204.51,7.86]
[1756539458337,7.41,204.58,204.51,7.86]
[1756539458637,0.03518805,204.55,204.51,7.86]
[1756539458839,0.03518805,204.55,204.5,4.4004]
[1756539459239,0.03518805,204.55,204.51,7.86]
[1756539459531,0.03518805,204.55,204.5,4.4004]
[1756539459736,0.03518805,204.55,204.51,7.86]
[1756539459936,0.03518805,204.55,204.5,4.4004]
[1756539460438,0.03518805,204.55,204.51,7.86]
[1756539460637,0.03518805,204.55,204.5,4.4004]
[1756539460838,0.03518805,204.55,204.51,7.86]
[1756539461234,0.03518805,204.55,204.53,7.86]
[1756539461836,0.03518805,204.55,204.54,4.3996]
[1756539462034,0.03518805,204.55,204.54,12.2596]
[1756539468340,0.03518805,204.55,204.54,7.86]
[1756539470943,7.54,204.65,204.54,8.34]
[1756539471132,5.98745727,204.64,204.54,7.86]
[1756539471336,7.54,204.65,204.53,2.84016808]
[1756539471337,5.98745727,204.63,204.56,7.86]
[1756539471532,2.51641903,204.62,204.56,7.86]
[1756539471737,10.05641903,204.61,204.57,7.86]
[1756539471937,2.51641903,204.6,204.57,7.86]
[1756539472137,7.54,204.61,204.57,7.89446736]
[1756539472337,2.51526947,204.6,204.57,7.89446736]
[1756539472542,7.54,204.61,204.58,7.86]
[1756539472848,2.51514386,204.6,204.58,7.86]
[1756539473039,7.54,204.61,204.58,7.86]
[1756539473237,2.51514504,204.6,204.58,7.86]
[1756539473442,7.54,204.61,204.58,7.86]
[1756539473643,7.54,204.61,204.57,0.03446736]
[1756539474040,7.54,204.61,204.58,7.86]
[1756539475242,7.54,204.61,204.57,0.03446736]
[1756539475940,7.54,204.61,204.58,7.86]
[1756539476141,7.54,204.61,204.57,0.03446736]
[1756539476343,7.54,204.61,204.58,7.86]
[1756539477239,7.54,204.61,204.57,0.03446736]
[1756539477543,7.54,204.61,204.58,7.86]
[1756539477845,7.54,204.61,204.57,0.03446736]
[1756539478043,7.54,204.59,204.57,0.03446736]
[1756539479344,1.81657001,204.6,204.57,0.03446736]
[1756539479547,7.54,204.59,204.57,0.03446736]
[1756539480138,9.35657001,204.59,204.57,0.03446736]
[1756539480945,7.54,204.59,204.57,0.03446736]
[1756539481150,9.35657001,204.61,204.58,7.86]
[1756539481443,1.81657001,204.63,204.59,7.86]
[1756539481646,10.0535808,204.62,204.59,7.86]
[1756539481946,10.0535808,204.61,204.59,7.86]
[1756539482148,7.54,204.61,204.59,7.86]
[1756539482639,7.54,204.7,204.6,47.68]
[1756539482845,7.54,204.7,204.68,1.81657001]
[1756539483048,7.54,204.7,204.64,1.81657001]
[1756539483343,1.81657001,204.69,204.67,0.03751649]
[1756539483541,7.54,204.68,204.67,0.03751649]
[1756539485746,10.85704193,204.68,204.67,0.03751649]
[1756539485947,16.65477268,204.68,204.57,7.86]
[1756539486137,7.54,204.66,204.57,7.86]
[1756539487143,0.03450164,204.64,204.57,7.86]
[1756539487344,7.75450164,204.64,204.57,7.86]
[1756539493752,7.75450164,204.64,204.6,7.81]
[1756539495250,7.72,204.63,204.6,7.81]
[1756539495455,0.03450164,204.64,204.59,2.83704193]
[1756539495753,7.72,204.63,204.59,10.64704193]
[1756539496247,7.72,204.63,204.6,7.81]
[1756539513471,7.75450164,204.64,204.61,9.62584268]
[1756539515375,0.03450164,204.64,204.63,9.62584268]
[1756539517476,0.03450164,204.64,204.63,10.6460843]
[1756539518969,0.03450164,204.64,204.63,130.2260843]
[1756539519575,7.55,204.71,204.65,7.78]
[1756539519773,7.55,204.69,204.66,10.6160843]
[1756539519973,5.81679903,204.68,204.62,10.6160843]
[1756539520173,7.55,204.66,204.63,7.78]
[1756539520674,7.55,204.72,204.63,7.78]
[1756539520874,7.55,204.7,204.63,7.78]
[1756539521075,7.55,204.68,204.63,7.78]
[1756539521277,2.39490342,204.67,204.63,7.78]
[1756539521678,7.55,204.67,204.63,7.78]
[1756539521874,7.55,204.67,204.62,2.87232728]
[1756539522079,7.55,204.75,204.65,2.8360843]
[1756539522276,7.55,204.73,204.65,10.6160843]
[1756539522578,5.8179522,204.72,204.65,10.6160843]
[1756539522778,5.8179522,204.71,204.67,0.03086908]
[1756539522982,7.55,204.69,204.67,7.81086908]
[1756539523280,2.3951921,204.68,204.67,7.81086908]
[1756539525278,7.55,204.75,204.67,7.81086908]
[1756539525484,7.55,204.73,204.67,7.81086908]
[1756539525679,7.55,204.71,204.68,7.78]
[1756539525880,2.39548165,204.7,204.68,7.78]
[1756539526080,7.55,204.71,204.68,7.78]
[1756539526281,2.39509667,204.7,204.68,7.78]
[1756539526479,7.55,204.71,204.68,7.78]
[1756539526675,2.39512725,204.7,204.68,7.78]
[1756539526878,7.55,204.71,204.68,7.78]
[1756539527079,2.39540858,204.7,204.68,7.78]
[1756539527281,7.55,204.71,204.68,7.78]
[1756539527481,2.39539141,204.7,204.68,7.78]
[1756539527681,7.55,204.71,204.68,7.78]
[1756539527881,2.3953912,204.7,204.68,7.78]
[1756539528082,7.55,204.77,204.68,10.6160843]
[1756539528283,7.55,204.75,204.68,10.6160843]
[1756539528485,5.81907358,204.74,204.68,10.6160843]
[1756539528785,7.55,204.72,204.69,7.78]
[1756539528987,2.39560448,204.71,204.69,7.81353107]
[1756539530285,7.55,204.79,204.69,7.81353107]
[1756539530487,7.55,204.77,204.69,7.81353107]
[1756539530685,7.55,204.75,204.69,7.81353107]
[1756539530883,7.55,204.73,204.69,7.81353107]
[1756539531187,9.94498609,204.72,204.69,7.81353107]
[1756539531487,7.55,204.72,204.69,7.81353107]
[1756539531987,7.55,204.72,204.69,0.03353107]
[1756539532189,7.55,204.72,204.7,7.78]
[1756539534588,7.55,204.72,204.69,7.81353107]
[1756539539294,7.55,204.72,204.7,1.81435767]
[1756539540592,7.55,204.75,204.7,1.81435767]
[1756539540792,7.55,204.73,204.7,1.81435767]
[1756539540994,9.95151078,204.72,204.7,1.81435767]
[1756539541192,7.55,204.75,204.7,1.81435767]
[1756539541382,7.55,204.73,204.7,1.81435767]
[1756539541588,2.40117313,204.72,204.7,1.81435767]
[1756539541886,9.95117313,204.72,204.7,1.81435767]
[1756539542088,7.55,204.72,204.7,1.81435767]
[1756539542688,7.55,204.75,204.7,1.81435767]
[1756539542885,5.81919084,204.74,204.7,1.81435767]
[1756539543190,5.81890041,204.73,204.69,0.03353107]
[1756539543390,11.76506285,204.72,204.69,0.03353107]
[1756539543585,7.55,204.7,204.69,0.03353107]
[1756539543792,9.95070518,204.7,204.69,0.03353107]
[1756539545393,9.95413334,204.7,204.69,0.03353107]
[1756539547295,2.40413334,204.7,204.69,9.24788874]
[1756539547489,7.36,204.73,204.7,7.4]
[1756539547696,2.40489082,204.72,204.7,7.4]
[1756539547993,7.36,204.72,204.7,7.4]
[1756539548695,7.36,204.72,204.7,9.21435767]
[1756539549392,7.36,204.72,204.69,0.03353107]
[1756539549584,7.36,204.78,204.69,7.43353107]
[1756539549790,5.8304476,204.77,204.69,7.43353107]
[1756539549991,13.1904476,204.76,204.69,7.43353107]
[1756539550191,5.8304476,204.75,204.69,7.43353107]
[1756539550397,7.36,204.73,204.69,7.43353107]
[1756539550594,5.8304476,204.74,204.69,7.43353107]
[1756539550595,7.36,204.71,204.69,7.43353107]
[1756539550897,7.36,204.75,204.69,0.03353107]
[1756539551197,7.36,204.73,204.69,0.03353107]
[1756539551496,5.83051616,204.72,204.7,7.4]
[1756539551691,7.36,204.76,204.7,7.4]
[1756539551898,5.83213276,204.75,204.7,7.4]
[1756539552192,5.83213276,204.74,204.72,7.4]
[1756539552398,2.40611064,204.73,204.72,7.4]
[1756539552598,101.25471813,204.79,204.72,7.4]
[1756539552793,5.83376266,204.78,204.72,7.4]
[1756539552996,2.40681624,204.77,204.72,7.4]
[1756539553196,101.25471813,204.79,204.72,7.4]
[1756539553496,2.40690539,204.78,204.72,7.4]
[1756539553693,101.25471813,204.79,204.72,11.7958]
[1756539553899,2.40679018,204.78,204.73,7.4]
[1756539554195,101.25471813,204.79,204.73,7.4]
[1756539554395,2.40679018,204.78,204.75,2.83485424]
[1756539554697,101.25471813,204.79,204.76,7.4]
[1756539554898,2.40630671,204.78,204.76,7.4]
[1756539555200,101.25471813,204.79,204.76,7.4]
[1756539555399,2.40630671,204.78,204.76,7.4]
[1756539555599,101.25471813,204.79,204.76,7.4]
[1756539555796,2.40595394,204.78,204.76,7.4]
[1756539556103,101.25471813,204.79,204.76,7.4]
[1756539556399,2.40496644,204.78,204.76,7.4]
[1756539556697,108.61471813,204.79,204.76,7.4]
[1756539556897,2.40472972,204.78,204.76,7.4]
[1756539557098,108.61471813,204.79,204.76,7.4]
[1756539557291,2.40472972,204.78,204.76,7.4]
[1756539557489,108.61471813,204.79,204.76,7.4]
[1756539557693,2.40453316,204.78,204.76,7.4]
[1756539557898,108.61471813,204.79,204.76,7.4]
[1756539558194,7.36,204.82,204.76,7.4]
[1756539558396,7.36,204.8,204.75,0.03146285]
[1756539558700,7.36,204.78,204.7,10.23485424]
[1756539558894,7.36,204.76,204.75,0.03384901]
[1756539559199,9.76477777,204.76,204.75,0.03384901]
[1756539562600,9.76262313,204.76,204.75,0.03384901]
[1756539566701,9.76368852,204.76,204.75,0.03384901]
[1756539567207,9.76385796,204.76,204.75,0.03384901]
[1756539577409,9.76610465,204.76,204.75,0.03384901]
[1756539580208,2.40610465,204.76,204.75,0.03384901]
[1756539580408,2.40610465,204.76,204.75,7.65384901]
[1756539580807,2.40665577,204.76,204.75,0.03384901]
[1756539581008,2.40665577,204.76,204.75,7.65384901]
[1756539583309,10.23665577,204.76,204.75,0.03384901]
[1756539584208,7.83,204.76,204.75,0.03384901]
[1756539584413,10.2354529,204.76,204.75,0.03384901]
[1756539585113,2.4054529,204.76,204.75,0.03384901]
[1756539586616,10.2354529,204.76,204.75,0.03384901]
[1756539587810,10.23592019,204.76,204.75,0.03384901]
[1756539598325,10.2379708,204.76,204.75,0.03384901]
[1756539601529,2.4079708,204.76,204.75,7.65384901]
[1756539601820,7.83,204.85,204.75,8.13384901]
[1756539602015,7.83,204.83,204.76,2.83485424]
[1756539602223,2.40766395,204.82,204.77,7.62]
[1756539602418,2.40766395,204.81,204.77,7.62]
[1756539602623,2.40766395,204.8,204.76,2.83485424]
[1756539602824,2.40766395,204.79,204.78,7.62]
[1756539606529,7.83,204.85,204.78,7.62]
[1756539606729,2.40558029,204.84,204.78,7.62]
[1756539606930,7.85,204.82,204.78,7.62]
[1756539607126,2.40558029,204.81,204.8,7.87]
[1756539607326,7.85,204.85,204.79,2.86956869]
[1756539607526,2.40452311,204.84,204.8,7.87]
[1756539607832,2.40404489,204.83,204.82,10.70485424]
[1756539608726,2.40277475,204.83,204.82,10.70485424]
[1756539609235,7.85,204.9,204.82,10.70485424]
[1756539609435,2.40202905,204.89,204.82,10.70485424]
[1756539609735,2.40202905,204.88,204.82,10.70485424]
[1756539609930,10.25202905,204.87,204.83,7.87]
[1756539610134,2.40202905,204.86,204.83,7.87]
[1756539610334,2.40202905,204.85,204.83,7.87]
[1756539610530,2.40202905,204.84,204.83,7.87]
[1756539611333,7.85,204.87,204.82,2.87230281]
[1756539611534,2.40084984,204.86,204.83,7.87]
[1756539611733,2.40084984,204.85,204.82,2.87230281]
[1756539611937,7.85,204.87,204.82,2.87230281]
[1756539611938,7.85,204.87,204.83,7.87]
[1756539612235,7.85,204.85,204.82,0.03744857]
[1756539612432,7.85,204.83,204.82,0.03744857]
[1756539612635,10.25084878,204.83,204.82,0.03744857]
[1756539612834,10.25084878,204.83,204.76,2.83485424]
[1756539613036,2.40084878,204.82,204.76,2.83485424]
[1756539613231,7.85,204.87,204.8,0.03540696]
[1756539613438,7.85,204.85,204.8,0.03540696]
[1756539613632,7.85,204.83,204.8,0.03540696]
[1756539613832,2.39963367,204.82,204.8,0.03540696]
[1756539614135,7.85,204.86,204.8,0.03540696]
[1756539614337,7.85,204.84,204.8,0.03540696]
[1756539614636,7.85,204.82,204.8,0.03540696]
[1756539616439,7.85,204.88,204.8,7.90540696]
[1756539616739,7.85,204.86,204.8,7.90540696]
[1756539616937,7.85,204.84,204.8,7.90540696]
[1756539617135,2.39928205,204.83,204.8,7.90540696]
[1756539617534,10.24928205,204.83,204.8,7.90540696]
[1756539617734,2.39928205,204.82,204.8,7.90540696]
[1756539617935,7.85,204.83,204.8,7.90540696]
[1756539618237,2.39916615,204.82,204.8,7.90540696]
[1756539618440,7.85,204.83,204.8,0.03540696]
[1756539618641,2.39907619,204.82,204.81,7.87]
[1756539618942,7.85,204.9,204.81,7.87]
[1756539619138,7.85,204.88,204.81,7.87]
[1756539619334,7.85,204.86,204.81,7.87]
[1756539619538,10.24928906,204.85,204.81,7.87]
[1756539619837,2.39928906,204.84,204.81,7.87]
[1756539620036,7.85,204.9,204.81,7.87]
[1756539620339,7.85,204.88,204.81,7.87]
[1756539620640,7.85,204.86,204.81,7.87]
[1756539620836,7.85,204.84,204.81,7.87]
[1756539624640,14.95485424,204.91,204.8,0.03540696]
[1756539624841,7.85,204.89,204.81,7.87]
[1756539625038,7.85,204.87,204.81,7.87]
[1756539625237,7.85,204.85,204.81,7.87]
[1756539625839,6.29863569,204.95,204.82,10.70485424]
[1756539626041,7.85,204.92,204.82,10.70485424]
[1756539626338,7.85,204.9,204.82,10.70485424]
[1756539626538,7.85,204.88,204.85,0.03642672]
[1756539626738,10.24745085,204.87,204.85,0.03642672]
[1756539626940,2.39745085,204.86,204.85,0.03642672]
[1756539628044,7.85,204.87,204.85,0.03642672]
[1756539628743,7.85,204.94,204.85,0.03642672]
[1756539628938,2.39632839,204.93,204.85,0.03642672]
[1756539629142,10.24632839,204.92,204.85,0.03642672]
[1756539629337,2.39632839,204.91,204.84,7.22805424]
[1756539629543,7.85,204.92,204.85,7.87]
[1756539629746,10.24563483,204.91,204.87,7.87]
[1756539629942,7.85,204.96,204.87,7.87]
[1756539630145,7.85,204.94,204.87,7.87]
[1756539630338,2.39563483,204.93,204.87,7.87]
[1756539630548,10.24563483,204.92,204.86,12.30012387]
[1756539630846,7.85,204.92,204.86,12.30012387]
[1756539635449,7.85,204.96,204.87,2.83485424]
[1756539635651,7.85,204.94,204.87,2.83485424]
[1756539635850,2.39174565,204.93,204.87,10.70485424]
[1756539636353,7.85,204.94,204.87,10.70485424]
[1756539636542,7.85,204.94,204.87,2.83485424]
[1756539636747,7.85,204.94,204.88,7.87]
[1756539638152,7.85,204.94,204.88,4.3924]
[1756539638449,7.84,205.0,204.91,7.55]